Workbook

Sheet Showcodes
A1: 6002 | B1: Overhead
A2: 6101 | B2: The Crucible
A3: 6102 | B3: Gone Missing
A4: 6103 | B4: Tartuffe by Moliere
A5: 6104 | B5: Much Ado About Nothing - ETC/536
A6: 6105 | B6: Blood Wedding
A7: 6106 | B7: As You Like It
A8: 6107 | B8: New Play Festival
A9: 6108 | B9: They Shoot Horses Dont They
A10: 6109 | B10: Little Eyolf
A11: 6110 | B11: BFA Senior Showcase
A12: 6111 | B12: Oedipus (BYU ETC)
A13: 6112 | B13: ETC 24 Hr Theatre Project
A14: 6113 | B14: Academic Class-ETC
A15: 6114 | B15: Merrily We Roll Along-TMA 536
A16: 6115 | B16: The Gondoliers - TMA 536
A17: 6116 | B17: Little Shop of Horrors
A18: 6117 | B18: The Women of Lockerbie-TMA 536
A19: 6118 | B19: Comedy of Errors
A20: 6119 | B20: Mysteries of Monster Grove
A21: 6120 | B21: Yellow - TMA 536
A22: 6121 | B22: A Man For All Seasons, Mortal Fools Theatre Co.-cancelled
A23: 6122 | B23: Elephant Man
A24: 6124 | B24: A Second Birth
A25: 6125 | B25: The Nightingale
A26: 6126 | B26: For Dear Life
A27: 6127 | B27: Final Cut Film Festival
A28: 6128 | B28: Christmas Miracle of Jonathan Toomey
A29: 6129 | B29: Metamorphoses
A30: 6130 | B30: Stuck on the Edge
A31: 6131 | B31: Hamlet
A32: 6132 | B32: Charlie Brown
A33: 6133 | B33: Tuesdays With Morrie
A34: 6134 | B34: Berenice-Margetts #2
A35: 6135 | B35: Hundred Dresses
A36: 6136 | B36: Legend of Sleepy Hollow
A37: 6137 | B37: ACTF Competition, Stage Door
A38: 6138 | B38: White Christmas
A39: 6139 | B39: Romeo and Juliet
A40: 6140 | B40: Merchant of Venice
A41: 6141 | B41: Persuasion, Jane Austen
A42: 6142 | B42: Anne Frank, The Diary of
A43: 6143 | B43: Misc Theatre
A44: 6144 | B44: Rohina Malik: Unveiled
A45: 6145 | B45: Babe the Sheep Pig
A46: 6146 | B46: Arabian Nights
A47: 6147 | B47: Stage Door
A48: 6148 | B48: Henry V
A49: 6149 | B49: Love's Labor's Lost
A50: 6150 | B50: Divine Comedy - TMA Class
A51: 6151 | B51: Peter Pan
A52: 6156 | B52: Academic Class 536 - Directing Workshop
A53: 6157 | B53: Academic Class Misc
A54: 6158 | B54: Academic Class (Mask,B-room,Prop)
A55: 6159 | B55: Academic Class Other
A56: 6160 | B56: Oedipus the King (Greek Theatre)
A57: 6161 | B57: Holiday
A58: 6162 | B58: Light in the Piazza
A59: 6164 | B59: Women in the Wind
A60: 6175 | B60: Servant of Two Masters
A61: 6180 | B61: Phantom of the Opera
A62: 6190 | B62: Wrinkle in Time, A
A63: 6198 | B63: Every Man a Magnificence
A64: 6201 | B64: Misc. Music/Oscarson Lectures
A65: 6202 | B65: Group for New Music
A66: 6203 | B66: Group for Experimental Music
A67: 6204 | B67: Non-Ticketed Ensembles
A68: 6205 | B68: Student Composers Showcase
A69: 6206 | B69: University Chorale
A70: 6207 | B70: Orpheus Winds
A71: 6208 | B71: Choir Showcase
A72: 6209 | B72: Orpheus Winds
A73: 6210 | B73: Cosi fan tutte
A74: 6211 | B74: BYU Philharmonic Orchestra
A75: 6212 | B75: BYU Singers and Concert Choir
A76: 6213 | B76: Folk Music Ensemble
A77: 6214 | B77: Chamber Orchestra
A78: 6215 | B78: Symphony Orchestra
A79: 6216 | B79: Evening of Percussion
A80: 6217 | B80: Synthesis
A81: 6218 | B81: Mens and Womens Chorus
A82: 6219 | B82: Student Composers Showcase
A83: 6220 | B83: Celebration of Christmas
A84: 6221 | B84: Young Ambassadors
A85: 6222 | B85: MDT Showcase-Broadway Revue
A86: 6223 | B86: Winter Choirfest
A87: 6224 | B87: MDT Senior Recital
A88: 6225 | B88: Living Legends
A89: 6226 | B89: Mktg Non-HFAC Music Events
A90: 6227 | B90: Music Production-LL Costumes
A91: 6228 | B91: Synthesis
A92: 6229 | B92: Jazz Lab Bands
A93: 6230 | B93: Folk Music Ensemble
A94: 6231 | B94: BYU Philharmonic Orchestra
A95: 6232 | B95: Gamelan Bintang Wahyu
A96: 6233 | B96: BYU Singers and Concert Choir
A97: 6234 | B97: University Chorale
A98: 6235 | B98: University Orchestra & Strings
A99: 6236 | B99: Living Legends
A100: 6237 | B100: Singers and Concert Choir
A101: 6238 | B101: Evening of Percussion/Gamelon
A102: 6239 | B102: Vocal Point
A103: 6240 | B103: BYU Philharmonic Orchestra
A104: 6241 | B104: Spring Opera-Pirates of Penzance
A105: 6242 | B105: Songwriter Showcase
A106: 6243 | B106: Young Ambassadors Costumes
A107: 6244 | B107: Songwriters Showcase
A108: 6245 | B108: Chamber Orchestra
A109: 6246 | B109: Jazz Ensemble
A110: 6247 | B110: Jazz Voices
A111: 6248 | B111: Voice Juries - Madsen
A112: 6249 | B112: University Orchestra & Strings
A113: 6250 | B113: Concert Shell-SOM setup/take down
A114: 6251 | B114: University Chorale
A115: 6252 | B115: American Piano Quartet
A116: 6253 | B116: Qd Up
A117: 6254 | B117: Jazz Legacy Dixieland Band
A118: 6255 | B118: Jazz Ensemble
A119: 6256 | B119: Madsen Music Evening Events
A120: 6257 | B120: BYU Singers A Tapestry of American Song
A121: 6258 | B121: Opera Scenes
A122: 6259 | B122: Young Artists of Voice
A123: 6260 | B123: Jazz Ensemble & Jazz Voices
A124: 6261 | B124: UT State Jr HS Band Festival
A125: 6262 | B125: Evening of Concertos
A126: 6263 | B126: Piano Juries SOM
A127: 6264 | B127: Inv Songwriters Showcase
A128: 6265 | B128: Jazz Combo Night
A129: 6266 | B129: Symphony Orchestra
A130: 6267 | B130: Jazz Combo Night
A131: 6268 | B131: Symphonic Band
A132: 6269 | B132: OcTUBAfest
A133: 6270 | B133: Symphonic Band
A134: 6271 | B134: Instrumental Showcase
A135: 6272 | B135: Casey at the Bat - MDT 2014
A136: 6273 | B136: Wind Symphony
A137: 6274 | B137: Women's Choral Festival Concert
A138: 6275 | B138: Jazz Voices
A139: 6276 | B139: Mens Chorus
A140: 6277 | B140: DeJong Music Events
A141: 6278 | B141: Cougar Marching Band
A142: 6279 | B142: Non Required Recitals
A143: 6280 | B143: Symphonic Band
A144: 6281 | B144: Sundance Trio Recording
A145: 6282 | B145: Deseret Chamber #2 Trmbn Auth
A146: 6283 | B146: Deseret Piano Trio
A147: 6284 | B147: Utah Ambassadors of Music
A148: 6285 | B148: University Bands
A149: 6286 | B149: Synthesis - Jazz Festival
A150: 6287 | B150: Jazz Voices
A151: 6288 | B151: Jazz Legacy Dixieland
A152: 6289 | B152: Jazz Showcase
A153: 6290 | B153: Wind Symphony & Symphonic Band
A154: 6291 | B154: Wind Symphony
A155: 6292 | B155: Tuba Christmas
A156: 6293 | B156: Jazz Lab Bands
A157: 6294 | B157: Wind Symphony
A158: 6295 | B158: Debussy/Ravel Celebration
A159: 6296 | B159: Womens Chorus
A160: 6297 | B160: Symphony Orchestra
A161: 6298 | B161: Symphony Orchestra
A162: 6299 | B162: Primrose Memorial Concert
A163: 6301 | B163: Miscellaneous Dance
A164: 6302 | B164: eviDANCE
A165: 6303 | B165: Dance in Concert-The Thing About Love
A166: 6304 | B166: Ballet in Concert-Sleeping Beauty
A167: 6305 | B167: Youth Ballroom Showcase
A168: 6306 | B168: DanceSport Championship
A169: 6307 | B169: The Mitch Show: Dance Dept GA
A170: 6308 | B170: DancEnsemble
A171: 6309 | B171: Senior Dance Showcase
A172: 6310 | B172: Faculty Choreography Showcase
A173: 6311 | B173: Ballroom in Concert
A174: 6312 | B174: Intl. Folk Dance Ensemble
A175: 6313 | B175: Ballroom Dance Blackpool
A176: 6314 | B176: dancEnsemble-Spring
A177: 6315 | B177: dancEnsemble
A178: 6316 | B178: Ballet Showcase
A179: 6317 | B179: Youth Ballroom Dance
A180: 6318 | B180: Crista Project - Costumes for dancEnsemble
A181: 6319 | B181: Folk Dance Ensemble
A182: 6320 | B182: Senior Dance Showcase
A183: 6321 | B183: Senior Dance Showcase
A184: 6322 | B184: Onward Alone
A185: 6323 | B185: Dancesport-Summer 10
A186: 6324 | B186: Korean Dance Theatre
A187: 6325 | B187: Living Legends Feb Concert
A188: 6326 | B188: Modern Dance Shwcs Dancers Co
A189: 6327 | B189: Onward Alone Distribution
A190: 6328 | B190: Christmas Around the World-2012
A191: 6329 | B191: Ascendance - Costumes for World of Dance
A192: 6330 | B192: Faculty Dance Works
A193: 6331 | B193: CDT India Pre-Tour Concert
A194: 6332 | B194: DanceSport US Natl Amateur
A195: 6333 | B195: Dance Production
A196: 6335 | B196: World Dance Showcase
A197: 6336 | B197: CDT Winter Semester Show
A198: 6337 | B198: Living Legends Mar Concert
A199: 6338 | B199: Senior Dance Showcase
A200: 6340 | B200: Dance Prod-Living Legends Costumes
... 120 more rows

Sheet PrintingData
A1: Category | B1: Type | C1: Date | D1: Num | E1: Name | F1: Memo | G1: Split | H1: Amount
A2: Newspaper | B2: General Journal | C2: 2013-03-08 | D2: Number | E2: 6258 | F2: Reclass Feb Daily Herald statement | G2: 6160 Adv-Gen (Newspaper) | H2: 50 | J2: Programs | K2: Credit Card Charge | L2: 2013-03-01 | M2: Number | N2: 6298 | O2: Program - Symphonic Orchestra | P2: 2200-CC Copy Center Charges | Q2: 150 | S2: Posters | T2: Credit Card Charge | U2: 2013-03-01 | V2: Number | W2: 7015 | X2: Aquila Theater Company | Y2: 2200-CC Copy Center Charges | Z2: 25
A3: Newspaper | B3: General Journal | C3: 2013-03-08 | D3: Number | E3: 6148 | F3: Reclass Feb Daily Herald statement | G3: 6160 Adv-Gen (Newspaper) | H3: 150 | J3: Programs | K3: Credit Card Charge | L3: 2013-03-01 | M3: Number | N3: 6294 | O3: Program - Wind Symphony | P3: 2200-CC Copy Center Charges | Q3: 15 | S3: Posters | T3: Credit Card Charge | U3: 2013-03-01 | V3: Number | W3: 6262 | X3: Evening of Piano Concertos 42x28 | Y3: 2200-CC Copy Center Charges | Z3: 50
A4: Newspaper | B4: General Journal | C4: 2013-03-08 | D4: Number | E4: 6222 | F4: Reclass Feb Daily Herald statement | G4: 6160 Adv-Gen (Newspaper) | H4: 50 | J4: Programs | K4: Credit Card Charge | L4: 2013-03-01 | M4: Number | N4: 6239 | O4: Programs-Vocal Point 8 Page | P4: 2200-CC Copy Center Charges | Q4: 400 | S4: Posters | T4: Credit Card Charge | U4: 2013-03-01 | V4: Number | W4: 6260 | X4: Jazz Fliers | Y4: 2200-CC Copy Center Charges | Z4: 10
A5: Newspaper | B5: General Journal | C5: 2013-03-08 | D5: Number | E5: 6221 | F5: Reclass Feb Daily Herald statement | G5: 6160 Adv-Gen (Newspaper) | H5: 50 | J5: Programs | K5: Credit Card Charge | L5: 2013-03-01 | M5: Number | N5: 6294 | O5: Family Program | P5: 2200-CC Copy Center Charges | Q5: 100 | S5: Posters | T5: Credit Card Charge | U5: 2013-03-01 | V5: Number | W5: 7015 | X5: Aquila quarter sheets FINAL | Y5: 2200-CC Copy Center Charges | Z5: 75
A6: Newspaper | B6: General Journal | C6: 2013-03-08 | D6: Number | E6: 7011 | F6: Reclass Feb Daily Herald statement | G6: 6160 Adv-Gen (Newspaper) | H6: 50 | J6: Programs | K6: Credit Card Charge | L6: 2013-03-01 | M6: Number | N6: 6226 | O6: UVU Singers | P6: 2200-CC Copy Center Charges | Q6: 100 | S6: Posters | T6: Credit Card Charge | U6: 2013-03-01 | V6: Number | W6: 6308 | X6: Buckaroo Pin | Y6: 2200-CC Copy Center Charges | Z6: 1
A7: Newspaper | B7: General Journal | C7: 2013-03-08 | D7: Number | E7: 6304 | F7: Reclass Feb Daily Herald statement | G7: 6160 Adv-Gen (Newspaper) | H7: 100 | J7: Programs | K7: Credit Card Charge | L7: 2013-03-01 | M7: Number | N7: 6256 | O7: Charles Driscol Recital Program | P7: 2200-CC Copy Center Charges | Q7: 5 | S7: Posters | T7: Credit Card Charge | U7: 2013-03-01 | V7: Number | W7: 6276 | X7: Sway Men's Chorus | Y7: 2200-CC Copy Center Charges | Z7: 50
A8: Newspaper | B8: General Journal | C8: 2013-03-08 | D8: Number | E8: 6325 | F8: Reclass Feb Daily Herald statement | G8: 6160 Adv-Gen (Newspaper) | H8: 100 | J8: Programs | K8: Credit Card Charge | L8: 2013-03-04 | M8: Number | N8: 6102 | O8: Playbill - Gone Missing | P8: 2200-CC Copy Center Charges | Q8: 1000 | S8: Posters | T8: Credit Card Charge | U8: 2013-03-01 | V8: Number | W8: 7027 | X8: Utah Symphony | Y8: 2200-CC Copy Center Charges | Z8: 50
A9: Newspaper | B9: General Journal | C9: 2013-03-08 | D9: Number | E9: 6280 | F9: Reclass Feb Daily Herald statement | G9: 6160 Adv-Gen (Newspaper) | H9: 50 | J9: Programs | K9: Credit Card Charge | L9: 2013-03-05 | M9: Number | N9: 6277 | O9: Program - Evening of Concertos - Philharmonic | P9: 2200-CC Copy Center Charges | Q9: 150 | S9: Posters | T9: Credit Card Charge | U9: 2013-03-04 | V9: Number | W9: 6213 | X9: Quartersheets 1up | Y9: 2200-CC Copy Center Charges | Z9: 10
A10: Newspaper | B10: General Journal | C10: 2013-03-08 | D10: Number | E10: 6298 | F10: Reclass Feb Daily Herald statement | G10: 6160 Adv-Gen (Newspaper) | H10: 50 | J10: Programs | K10: Credit Card Charge | L10: 2013-03-06 | M10: Number | N10: 6230 | O10: Program - Folk Music Ensemble | P10: 2200-CC Copy Center Charges | Q10: 150 | S10: Posters | T10: Credit Card Charge | U10: 2013-03-08 | V10: Number | W10: 6204 | X10: Harp Ensemble Poster Quarter Sheets | Y10: 2200-CC Copy Center Charges | Z10: 10
A11: Newspaper | B11: General Journal | C11: 2013-03-08 | D11: Number | E11: 6294 | F11: Reclass Feb Daily Herald statement | G11: 6160 Adv-Gen (Newspaper) | H11: 50 | J11: Programs | K11: Credit Card Charge | L11: 2013-03-07 | M11: Number | N11: 6299 | O11: Primrose Program | P11: 2200-CC Copy Center Charges | Q11: 50 | S11: Posters | T11: Credit Card Charge | U11: 2013-03-08 | V11: Number | W11: 6256 | X11: Dvid Lang Flyers | Y11: 2200-CC Copy Center Charges | Z11: 10
A12: Newspaper | B12: General Journal | C12: 2013-03-08 | D12: Number | E12: 6307 | F12: Reclass Feb Daily Herald statement | G12: 6160 Adv-Gen (Newspaper) | H12: 50 | J12: Programs | K12: Credit Card Charge | L12: 2013-03-11 | M12: Number | N12: 7015 | O12: Program - Cyrano De Bergerac | P12: 2200-CC Copy Center Charges | Q12: 1000 | S12: Posters | T12: Credit Card Charge | U12: 2013-03-11 | V12: Number | W12: 6325 | X12: March Living Legends Fliers | Y12: 2200-CC Copy Center Charges | Z12: 25
A13: Newspaper | B13: General Journal | C13: 2013-03-08 | D13: Number | E13: 6330 | F13: Reclass Feb Daily Herald statement | G13: 6160 Adv-Gen (Newspaper) | H13: 50 | J13: Programs | K13: Credit Card Charge | L13: 2013-03-18 | M13: Number | N13: 6256 | O13: Bush Hansen | P13: 2200-CC Copy Center Charges | Q13: 25 | S13: Posters | T13: Credit Card Charge | U13: 2013-03-11 | V13: Number | W13: 7018 | X13: Natalie MacMaster | Y13: 2200-CC Copy Center Charges | Z13: 50
A14: Newspaper | B14: General Journal | C14: 2013-03-08 | D14: Number | E14: 6240 | F14: Reclass Feb Daily Herald statement | G14: 6160 Adv-Gen (Newspaper) | H14: 10 | J14: Programs | K14: Credit Card Charge | L14: 2013-03-19 | M14: Number | N14: 6255 | O14: Jazz Ensemble 2013 | P14: 2200-CC Copy Center Charges | Q14: 50 | S14: Posters | T14: Credit Card Charge | U14: 2013-03-12 | V14: Number | W14: 6296 | X14: Quarter Sheets - Women's Chorus | Y14: 2200-CC Copy Center Charges | Z14: 300
A15: Newspaper | B15: General Journal | C15: 2013-03-08 | D15: Number | E15: 7015 | F15: Reclass Feb Daily Herald statement | G15: 6160 Adv-Gen (Newspaper) | H15: 10 | J15: Programs | K15: Credit Card Charge | L15: 2013-03-19 | M15: Number | N15: 6255 | O15: Jazz Ensemble Poster | P15: 2200-CC Copy Center Charges | Q15: 50 | S15: Posters | T15: Credit Card Charge | U15: 2013-03-13 | V15: Number | W15: 6308 | X15: Buckaroo Flyers | Y15: 2200-CC Copy Center Charges | Z15: 50
A16: Newspaper | B16: General Journal | C16: 2013-03-08 | D16: Number | E16: 6260 | F16: Reclass Feb Daily Herald statement | G16: 6160 Adv-Gen (Newspaper) | H16: 20 | J16: Programs | K16: Credit Card Charge | L16: 2013-03-20 | M16: Number | N16: 6204 | O16: WW Chamber Night | P16: 2200-CC Copy Center Charges | Q16: 25 | S16: Posters | T16: Credit Card Charge | U16: 2013-03-14 | V16: Number | W16: 6204 | X16: Flute Choir Quartersheets | Y16: 2200-CC Copy Center Charges | Z16: 5
A17: Newspaper | B17: General Journal | C17: 2013-03-08 | D17: Number | E17: 6239 | F17: Reclass Feb Daily Herald statement | G17: 6160 Adv-Gen (Newspaper) | H17: 20 | J17: Programs | K17: Credit Card Charge | L17: 2013-03-21 | M17: Number | N17: 6276 | O17: Mens Chorus Program 4 page | P17: 2200-CC Copy Center Charges | Q17: 1000 | S17: Posters | T17: Credit Card Charge | U17: 2013-03-15 | V17: Number | W17: 6266 | X17: Symphony Orchestra April 28X42 | Y17: 2200-CC Copy Center Charges | Z17: 50
A18: Newspaper | B18: General Journal | C18: 2013-03-08 | D18: Number | E18: 6286 | F18: Reclass Feb Daily Herald statement | G18: 6160 Adv-Gen (Newspaper) | H18: 20 | J18: Programs | K18: Credit Card Charge | L18: 2013-03-22 | M18: Number | N18: 6308 | O18: Program-Buckaroo danceEnsemble | P18: 2200-CC Copy Center Charges | Q18: 500 | S18: Posters | T18: Credit Card Charge | U18: 2013-03-19 | V18: Number | W18: 6204 | X18: Trombone Night Quarter Sheet 4-up | Y18: 2200-CC Copy Center Charges | Z18: 5
A19: Newspaper | B19: General Journal | C19: 2013-03-08 | D19: Number | E19: 6230 | F19: Reclass Feb Daily Herald statement | G19: 6160 Adv-Gen (Newspaper) | H19: 10 | J19: Programs | K19: Credit Card Charge | L19: 2013-03-22 | M19: Number | N19: 7018 | O19: Program - Natalie MacMaster | P19: 2200-CC Copy Center Charges | Q19: 800 | S19: Posters | T19: Credit Card Charge | U19: 2013-03-19 | V19: Number | W19: 6233 | X19: Singers Concert Choir bookmarks - Yellow | Y19: 2200-CC Copy Center Charges | Z19: 25
A20: Newspaper | B20: General Journal | C20: 2013-03-08 | D20: Number | E20: 7030 | F20: Reclass Feb Daily Herald statement | G20: 6160 Adv-Gen (Newspaper) | H20: 50 | J20: Programs | K20: Credit Card Charge | L20: 2013-03-22 | M20: Number | N20: 6245 | O20: Program - Chamber Orchestra | P20: 2200-CC Copy Center Charges | Q20: 10 | S20: Posters | T20: Credit Card Charge | U20: 2013-03-19 | V20: Number | W20: 6233 | X20: Singers Concert Choir Bookmarks - Yellow | Y20: 2200-CC Copy Center Charges | Z20: 25
A21: Newspaper | B21: Credit Card Charge | C21: 2013-03-14 | E21: Daily | G21: 2200-BK Bookstore Charges | H21: 0 | J21: Programs | K21: Credit Card Charge | L21: 2013-03-25 | M21: Number | N21: 6240 | O21: Easter Family Music Program | P21: 2200-CC Copy Center Charges | Q21: 500 | S21: Posters | T21: General Journal | U21: 2013-03-20 | V21: Number | W21: 6255 | X21: Reclass print and mail C017372 Jazz Ensemble 2013 3/19/13 | Y21: -SPLIT- | Z21: 50
A22: Newspaper | B22: General Journal | C22: 2013-03-21 | D22: Number | E22: 6102 | F22: Reclass Feb Daily Universe payment | G22: -SPLIT- | H22: 115 | J22: Programs | K22: Credit Card Charge | L22: 2013-03-25 | M22: Number | N22: 6175 | O22: Playbill - The Servant of Two Masters | P22: 2200-CC Copy Center Charges | Q22: 2000 | S22: Posters | T22: General Journal | U22: 2013-03-20 | V22: Number | W22: 6255 | X22: Reclass print and mail C017370 Jazz Ensemble 2013 3/19/13 | Y22: 6160-64 Copy-Fly/Poster(color) | Z22: 50
A23: Newspaper | B23: General Journal | C23: 2013-03-21 | D23: Number | E23: 6258 | F23: Reclass Feb Daily Universe payment | G23: 6160 Adv-Gen (Newspaper) | H23: 50 | J23: Programs | K23: Credit Card Charge | L23: 2013-03-26 | M23: Number | N23: 6204 | O23: Flute, Sax & Trombone Programs | P23: 2200-CC Copy Center Charges | Q23: 50 | S23: Posters | T23: Credit Card Charge | U23: 2013-03-22 | V23: Number | W23: 6320 | X23: qtrsheets for Senior Dance Showcase 3 | Y23: 2200-CC Copy Center Charges | Z23: 10
A24: Newspaper | B24: General Journal | C24: 2013-03-21 | D24: Number | E24: 6148 | F24: Reclass Feb Daily Universe payment | G24: 6160 Adv-Gen (Newspaper) | H24: 75 | J24: Programs | K24: Credit Card Charge | L24: 2013-03-26 | M24: Number | N24: 6256 | O24: Program | P24: 2200-CC Copy Center Charges | Q24: 50 | S24: Posters | T24: Credit Card Charge | U24: 2013-03-22 | V24: Number | W24: 7011 | X24: Aquilia Theatre Company Poster | Y24: 2200-CC Copy Center Charges | Z24: 50
A25: Newspaper | B25: General Journal | C25: 2013-03-21 | D25: Number | E25: 6222 | F25: Reclass Feb Daily Universe payment | G25: 6160 Adv-Gen (Newspaper) | H25: 50 | J25: Programs | K25: Credit Card Charge | L25: 2013-03-26 | M25: Number | N25: 6204 | O25: harp ensemble program | P25: 2200-CC Copy Center Charges | Q25: 10 | S25: Posters | T25: Credit Card Charge | U25: 2013-03-22 | V25: Number | W25: 6296 | X25: Quarter Sheets - Women's Chorus | Y25: 2200-CC Copy Center Charges | Z25: 300
A26: Newspaper | B26: General Journal | C26: 2013-03-21 | D26: Number | E26: 6221 | F26: Reclass Feb Daily Universe payment | G26: 6160 Adv-Gen (Newspaper) | H26: 50 | J26: Programs | K26: Credit Card Charge | L26: 2013-03-26 | M26: Number | N26: 6304 | O26: Playbill-Sleeping Beauty | P26: 2200-CC Copy Center Charges | Q26: 2000 | S26: Posters | T26: Credit Card Charge | U26: 2013-03-26 | V26: Number | W26: 6238 | X26: Precussion Sheets | Y26: 2200-CC Copy Center Charges | Z26: 25
A27: Newspaper | B27: General Journal | C27: 2013-03-21 | D27: Number | E27: 7011 | F27: Reclass Feb Daily Universe payment | G27: 6160 Adv-Gen (Newspaper) | H27: 25 | S27: Posters | T27: Credit Card Charge | U27: 2013-03-27 | V27: Number | W27: 6273 | X27: Wind Symphony | Y27: 2200-CC Copy Center Charges | Z27: 50
A28: Newspaper | B28: General Journal | C28: 2013-03-21 | D28: Number | E28: 6304 | F28: Reclass Feb Daily Universe payment | G28: 6160 Adv-Gen (Newspaper) | H28: 50 | S28: Posters | T28: Credit Card Charge | U28: 2013-04-01 | V28: Number | W28: 6228 | X28: synthesis fliers | Y28: 2200-CC Copy Center Charges | Z28: 50
A29: Newspaper | B29: General Journal | C29: 2013-03-21 | D29: Number | E29: 6223 | F29: Reclass Feb Daily Universe payment | G29: 6160 Adv-Gen (Newspaper) | H29: 12 | S29: Posters | T29: Credit Card Charge | U29: 2013-04-01 | V29: Number | W29: 6231 | X29: Philharmonic Fliers | Y29: 2200-CC Copy Center Charges | Z29: 25
A30: Newspaper | B30: General Journal | C30: 2013-03-21 | D30: Number | E30: 6270 | F30: Reclass Feb Daily Universe payment | G30: 6160 Adv-Gen (Newspaper) | H30: 40 | S30: Posters | T30: Credit Card Charge | U30: 2013-04-01 | V30: Number | W30: 6273 | X30: Wind Symphony 2 Quarter Sheets | Y30: 2200-CC Copy Center Charges | Z30: 10
A31: Newspaper | B31: General Journal | C31: 2013-03-21 | D31: Number | E31: 6266 | F31: Reclass Feb Daily Universe payment | G31: 6160 Adv-Gen (Newspaper) | H31: 30 | S31: Posters | T31: Credit Card Charge | U31: 2013-04-01 | V31: Number | W31: 6204 | X31: Jazz Lab Band Quarter | Y31: 2200-CC Copy Center Charges | Z31: 10
A32: Newspaper | B32: General Journal | C32: 2013-03-21 | D32: Number | E32: 6337 | F32: Reclass Feb Daily Universe payment | G32: 6160 Adv-Gen (Newspaper) | H32: 50
A33: Newspaper | B33: General Journal | C33: 2013-03-21 | D33: Number | E33: 6294 | F33: Reclass Feb Daily Universe payment | G33: 6160 Adv-Gen (Newspaper) | H33: 25
A34: Newspaper | B34: General Journal | C34: 2013-03-21 | D34: Number | E34: 6240 | F34: Reclass Feb Daily Universe payment | G34: 6160 Adv-Gen (Newspaper) | H34: 10
A35: Newspaper | B35: General Journal | C35: 2013-03-21 | D35: Number | E35: 6307 | F35: Reclass Feb Daily Universe payment | G35: 6160 Adv-Gen (Newspaper) | H35: 30
A36: Newspaper | B36: General Journal | C36: 2013-03-21 | D36: Number | E36: 6330 | F36: Reclass Feb Daily Universe payment | G36: 6160 Adv-Gen (Newspaper) | H36: 25
A37: Newspaper | B37: General Journal | C37: 2013-03-21 | D37: Number | E37: 6239 | F37: Reclass Feb Daily Universe payment | G37: 6160 Adv-Gen (Newspaper) | H37: 20
A38: Newspaper | B38: General Journal | C38: 2013-03-21 | D38: Number | E38: 6286 | F38: Reclass Feb Daily Universe payment | G38: 6160 Adv-Gen (Newspaper) | H38: 20
A39: Newspaper | B39: General Journal | C39: 2013-03-21 | D39: Number | E39: 6230 | F39: Reclass Feb Daily Universe payment | G39: 6160 Adv-Gen (Newspaper) | H39: 10
A40: Newspaper | B40: General Journal | C40: 2013-03-21 | D40: Number | E40: 7030 | F40: Reclass Feb Daily Universe payment | G40: 6160 Adv-Gen (Newspaper) | H40: 30

Sheet importedData
A1: byuid | B1: showid | C1: date | D1: hours | E1: othours | F1: memo | G1: curwage | H1: Labor Cost
A2: Student 1 | B2: 6162 | C2: 2013-04-10 | D2: 2 | E2: 0 | F2: poster | G2: 10 | H2: =G2*D2+G2*E2*1.5 -> 20 | I2: =SUMIF($A$2:$A$6,A2,$D$2:$D$6) -> 10
A3: Student 1 | B3: 6162 | C3: 2013-04-09 | D3: 3 | E3: 0 | F3: poster research | G3: 10 | H3: =G3*D3+G3*E3*1.5 -> 30 | I3: =SUMIF($A$2:$A$6,A3,$D$2:$D$6) -> 10
A4: Student 1 | B4: 6162 | C4: 2013-04-08 | D4: 2 | E4: 0 | F4: poster research and design | G4: 10 | H4: 20 | I4: =SUMIF($A$2:$A$6,A4,$D$2:$D$6) -> 10
A5: Student 1 | B5: 6162 | C5: 2013-04-05 | D5: 2 | E5: 0 | F5: research | G5: 10 | H5: 20 | I5: =SUMIF($A$2:$A$6,A5,$D$2:$D$6) -> 10
A6: Student 1 | B6: 6162 | C6: 2013-04-04 | D6: 1 | E6: 0 | F6: research/strategy | G6: 10 | H6: 10 | I6: =SUMIF($A$2:$A$6,A6,$D$2:$D$6) -> 10
B7: 6162 Total | D7: =SUM(D2:D6) -> 10 | H7: =SUM(H2:H6) -> 100 | I7: =SUMPRODUCT(1/COUNTIF(I$2:I$6,I$2:I$6)) -> 1
A8: Student 2 | B8: 6190 | C8: 2013-04-10 | D8: 2 | E8: 0 | F8: Meeting with dramaturg and planning study guide | G8: 9 | H8: =G8*D8+G8*E8*1.5 -> 18 | I8: =SUMIF($A$8:$A$12,A8,$D$8:$D$12) -> 5
A9: Student 2 | B9: 6190 | C9: 2013-04-08 | D9: 3 | E9: 0 | F9: Program template and gathering information | G9: 9 | H9: 27 | I9: =SUMIF($A$8:$A$12,A9,$D$8:$D$12) -> 5
A10: Student 1 | B10: 6190 | C10: 2013-04-05 | D10: 2 | E10: 0 | F10: quarter sheets and bookmarks | G10: 10 | H10: 20 | I10: =SUMIF($A$8:$A$12,A10,$D$8:$D$12) -> 3.5
A11: Student 1 | B11: 6190 | C11: 2013-04-04 | D11: 1 | E11: 0 | F11: bookmarks | G11: 10 | H11: 10 | I11: =SUMIF($A$8:$A$12,A11,$D$8:$D$12) -> 3.5
A12: Student 1 | B12: 6190 | C12: 2013-04-01 | D12: 0.5 | E12: 0 | F12: bookmarks | G12: 10 | H12: 5 | I12: =SUMIF($A$8:$A$12,A12,$D$8:$D$12) -> 3.5
B13: 6190 Total | D13: =SUM(D8:D12) -> 8.5 | H13: =SUM(H8:H12) -> 80 | I13: =SUMPRODUCT(1/COUNTIF(I$8:I$12,I$8:I$12)) -> 2
A14: Student 3 | B14: 6202 | C14: 2013-04-01 | D14: 3.8 | E14: 0 | F14: poster and online art | G14: 11 | H14: =G14*D14+G14*E14*1.5 -> 41.8 | I14: =SUMIF($A$14:$A$14,A14,$D$14:$D$14) -> 3.8
B15: 6202 Total | D15: =SUM(D14) -> 3.8 | H15: =SUM(H14) -> 41.8 | I15: =SUMPRODUCT(1/COUNTIF(I$14:I$14,I$14:I$14)) -> 1
A16: Student 3 | B16: 6204 | C16: 2013-04-05 | D16: 4 | E16: 0 | F16: Poster for May performance | G16: 11 | H16: =G16*D16+G16*E16*1.5 -> 44 | I16: =SUMIF($A$16:$A$17,A16,$D$16:$D$17) -> 7
A17: Student 3 | B17: 6204 | C17: 2013-04-04 | D17: 3 | E17: 0 | F17: Poster for May performance | G17: 11 | H17: 33 | I17: =SUMIF($A$16:$A$17,A17,$D$16:$D$17) -> 7
B18: 6204 Total | D18: =SUM(D16:D17) -> 7 | H18: =SUM(H16:H17) -> 77 | I18: =SUMPRODUCT(1/COUNTIF(I$16:I$17,I$16:I$17)) -> 1
A19: Student 1 | B19: 6206 | C19: 2013-04-02 | D19: 0.5 | E19: 0 | F19: facebook page | G19: 10 | H19: =G19*D19+G19*E19*1.5 -> 5 | I19: =SUMIF($A$19:$A$21,A19,$D$19:$D$21) -> 4.5
A20: Student 1 | B20: 6206 | C20: 2013-04-02 | D20: 2 | E20: 0 | F20: poster | G20: 10 | H20: 20 | I20: =SUMIF($A$19:$A$21,A20,$D$19:$D$21) -> 4.5
A21: Student 1 | B21: 6206 | C21: 2013-04-01 | D21: 2 | E21: 0 | F21: poster | G21: 10 | H21: 20 | I21: =SUMIF($A$19:$A$21,A21,$D$19:$D$21) -> 4.5
B22: 6206 Total | D22: =SUM(D19:D21) -> 4.5 | H22: =SUM(H19:H21) -> 45 | I22: =SUMPRODUCT(1/COUNTIF(I$19:I$21,I$19:I$21)) -> 1
A23: Student 1 | B23: 6249 | C23: 2013-04-02 | D23: 0.5 | E23: 0 | F23: facebook page | G23: 10 | H23: =G23*D23+G23*E23*1.5 -> 5 | I23: =SUMIF($A$23:$A$24,A23,$D$23:$D$24) -> 1.5
A24: Student 1 | B24: 6249 | C24: 2013-04-01 | D24: 1 | E24: 0 | F24: online art | G24: 10 | H24: 10 | I24: =SUMIF($A$23:$A$24,A24,$D$23:$D$24) -> 1.5
B25: 6249 Total | D25: =SUM(D23:D24) -> 1.5 | H25: =SUM(H23:H24) -> 15 | I25: =SUMPRODUCT(1/COUNTIF(I$23:I$24,I$23:I$24)) -> 1
A26: Student 1 | B26: 6285 | C26: 2013-04-03 | D26: 1.5 | E26: 0 | F26: quarter sheets and poster | G26: 10 | H26: =G26*D26+G26*E26*1.5 -> 15 | I26: =SUMIF($A$26:$A$26,A26,$D$26:$D$26) -> 1.5
B27: 6285 Total | D27: =D26 -> 1.5 | H27: =SUM(H26) -> 15 | I27: =SUMPRODUCT(1/COUNTIF(I$26:I$26,I$26:I$26)) -> 1
A28: Student 1 | B28: 6287 | C28: 2013-04-03 | D28: 1 | E28: 0 | F28: poster | G28: 10 | H28: =G28*D28+G28*E28*1.5 -> 10 | I28: =SUMIF($A$28:$A$28,A28,$D$28:$D$28) -> 1
B29: 6287 Total | D29: 1 | H29: =SUM(H28) -> 10 | I29: =SUMPRODUCT(1/COUNTIF(I$28:I$28,I$28:I$28)) -> 1
A30: Student 2 | B30: 6148 | C30: 2013-04-05 | D30: 3 | E30: 0 | F30: Finalizing program for printing | G30: 9 | H30: =G30*D30+G30*E30*1.5 -> 27 | I30: =SUMIF($A$30:$A$33,A30,$D$30:$D$33) -> 13
A31: Student 2 | B31: 6148 | C31: 2013-04-04 | D31: 2 | E31: 0 | F31: Program design | G31: 9 | H31: 18 | I31: =SUMIF($A$30:$A$33,A31,$D$30:$D$33) -> 13
A32: Student 2 | B32: 6148 | C32: 2013-04-03 | D32: 4 | E32: 0 | F32: Program design | G32: 9 | H32: 36 | I32: =SUMIF($A$30:$A$33,A32,$D$30:$D$33) -> 13
A33: Student 2 | B33: 6148 | C33: 2013-04-01 | D33: 4 | E33: 0 | F33: Program Design | G33: 9 | H33: 36 | I33: =SUMIF($A$30:$A$33,A33,$D$30:$D$33) -> 13
B34: 6148 Total | D34: =SUM(D30:D33) -> 13 | H34: =SUM(H30:H33) -> 117 | I34: =SUMPRODUCT(1/COUNTIF(I$30:I$33,I$30:I$33)) -> 1
A35: Student 1 | B35: 6222 | C35: 2013-04-10 | D35: 2 | E35: 0 | F35: poster | G35: 10 | H35: =G35*D35+G35*E35*1.5 -> 20 | I35: =SUMIF($A$2:$A$6,A35,$D$2:$D$6) -> 10
A36: Student 1 | B36: 6222 | C36: 2013-04-09 | D36: 3 | E36: 0 | F36: poster research | G36: 10 | H36: =G36*D36+G36*E36*1.5 -> 30 | I36: =SUMIF($A$2:$A$6,A36,$D$2:$D$6) -> 10
A37: Student 1 | B37: 6222 | C37: 2013-04-08 | D37: 2 | E37: 0 | F37: poster research and design | G37: 10 | H37: 20 | I37: =SUMIF($A$2:$A$6,A37,$D$2:$D$6) -> 10
A38: Student 1 | B38: 6222 | C38: 2013-04-05 | D38: 2 | E38: 0 | F38: research | G38: 10 | H38: 20 | I38: =SUMIF($A$2:$A$6,A38,$D$2:$D$6) -> 10
A39: Student 1 | B39: 6222 | C39: 2013-04-04 | D39: 1 | E39: 0 | F39: research/strategy | G39: 10 | H39: 10 | I39: =SUMIF($A$2:$A$6,A39,$D$2:$D$6) -> 10
B40: 6222 Total | D40: =SUM(D35:D39) -> 10 | H40: =SUM(H35:H39) -> 100 | I40: =SUMPRODUCT(1/COUNTIF(I$2:I$6,I$2:I$6)) -> 1
A41: Student 2 | B41: 6256 | C41: 2013-04-10 | D41: 2 | E41: 0 | F41: Meeting with dramaturg and planning study guide | G41: 9 | H41: =G41*D41+G41*E41*1.5 -> 18 | I41: =SUMIF($A$8:$A$12,A41,$D$8:$D$12) -> 5
A42: Student 2 | B42: 6256 | C42: 2013-04-08 | D42: 3 | E42: 0 | F42: Program template and gathering information | G42: 9 | H42: 27 | I42: =SUMIF($A$8:$A$12,A42,$D$8:$D$12) -> 5
A43: Student 1 | B43: 6256 | C43: 2013-04-05 | D43: 2 | E43: 0 | F43: quarter sheets and bookmarks | G43: 10 | H43: 20 | I43: =SUMIF($A$8:$A$12,A43,$D$8:$D$12) -> 3.5
A44: Student 1 | B44: 6256 | C44: 2013-04-04 | D44: 1 | E44: 0 | F44: bookmarks | G44: 10 | H44: 10 | I44: =SUMIF($A$8:$A$12,A44,$D$8:$D$12) -> 3.5
A45: Student 1 | B45: 6256 | C45: 2013-04-01 | D45: 0.5 | E45: 0 | F45: bookmarks | G45: 10 | H45: 5 | I45: =SUMIF($A$8:$A$12,A45,$D$8:$D$12) -> 3.5
B46: 6256 Total | D46: =SUM(D41:D45) -> 8.5 | H46: =SUM(H41:H45) -> 80 | I46: =SUMPRODUCT(1/COUNTIF(I$8:I$12,I$8:I$12)) -> 2
A47: Student 3 | B47: 6308 | C47: 2013-04-01 | D47: 3.8 | E47: 0 | F47: poster and online art | G47: 11 | H47: =G47*D47+G47*E47*1.5 -> 41.8 | I47: =SUMIF($A$14:$A$14,A47,$D$14:$D$14) -> 3.8
B48: 6308 Total | D48: =SUM(D47) -> 3.8 | H48: =SUM(H47) -> 41.8 | I48: =SUMPRODUCT(1/COUNTIF(I$14:I$14,I$14:I$14)) -> 1
A49: Student 3 | B49: 6304 | C49: 2013-04-05 | D49: 4 | E49: 0 | F49: Poster for May performance | G49: 11 | H49: =G49*D49+G49*E49*1.5 -> 44 | I49: =SUMIF($A$16:$A$17,A49,$D$16:$D$17) -> 7
A50: Student 3 | B50: 6304 | C50: 2013-04-04 | D50: 3 | E50: 0 | F50: Poster for May performance | G50: 11 | H50: 33 | I50: =SUMIF($A$16:$A$17,A50,$D$16:$D$17) -> 7
B51: 6304 Total | D51: =SUM(D49:D50) -> 7 | H51: =SUM(H49:H50) -> 77 | I51: =SUMPRODUCT(1/COUNTIF(I$16:I$17,I$16:I$17)) -> 1
A52: Student 1 | B52: 6206 | C52: 2013-04-02 | D52: 0.5 | E52: 0 | F52: facebook page | G52: 10 | H52: =G52*D52+G52*E52*1.5 -> 5 | I52: =SUMIF($A$19:$A$21,A52,$D$19:$D$21) -> 4.5
A53: Student 1 | B53: 6206 | C53: 2013-04-02 | D53: 2 | E53: 0 | F53: poster | G53: 10 | H53: 20 | I53: =SUMIF($A$19:$A$21,A53,$D$19:$D$21) -> 4.5
A54: Student 1 | B54: 6206 | C54: 2013-04-01 | D54: 2 | E54: 0 | F54: poster | G54: 10 | H54: 20 | I54: =SUMIF($A$19:$A$21,A54,$D$19:$D$21) -> 4.5
B55: 6206 Total | D55: =SUM(D52:D54) -> 4.5 | H55: =SUM(H52:H54) -> 45 | I55: =SUMPRODUCT(1/COUNTIF(I$19:I$21,I$19:I$21)) -> 1
A56: Student 1 | B56: 7011 | C56: 2013-04-02 | D56: 0.5 | E56: 0 | F56: facebook page | G56: 10 | H56: =G56*D56+G56*E56*1.5 -> 5 | I56: =SUMIF($A$23:$A$24,A56,$D$23:$D$24) -> 1.5
A57: Student 1 | B57: 7011 | C57: 2013-04-01 | D57: 1 | E57: 0 | F57: online art | G57: 10 | H57: 10 | I57: =SUMIF($A$23:$A$24,A57,$D$23:$D$24) -> 1.5
B58: 7011 Total | D58: =SUM(D56:D57) -> 1.5 | H58: =SUM(H56:H57) -> 15 | I58: =SUMPRODUCT(1/COUNTIF(I$23:I$24,I$23:I$24)) -> 1
A59: Student 1 | B59: 6255 | C59: 2013-04-03 | D59: 1.5 | E59: 0 | F59: quarter sheets and poster | G59: 10 | H59: =G59*D59+G59*E59*1.5 -> 15 | I59: =SUMIF($A$26:$A$26,A59,$D$26:$D$26) -> 1.5
B60: 6255 Total | D60: =D59 -> 1.5 | H60: =SUM(H59) -> 15 | I60: =SUMPRODUCT(1/COUNTIF(I$26:I$26,I$26:I$26)) -> 1
A61: Student 1 | B61: 7015 | C61: 2013-04-03 | D61: 1 | E61: 0 | F61: poster | G61: 10 | H61: =G61*D61+G61*E61*1.5 -> 10 | I61: =SUMIF($A$28:$A$28,A61,$D$28:$D$28) -> 1
B62: 7015 Total | D62: 1 | H62: =SUM(H61) -> 10 | I62: =SUMPRODUCT(1/COUNTIF(I$28:I$28,I$28:I$28)) -> 1
A63: Student 2 | B63: 6175 | C63: 2013-04-05 | D63: 3 | E63: 0 | F63: Finalizing program for printing | G63: 9 | H63: =G63*D63+G63*E63*1.5 -> 27 | I63: =SUMIF($A$30:$A$33,A63,$D$30:$D$33) -> 13
A64: Student 2 | B64: 6175 | C64: 2013-04-04 | D64: 2 | E64: 0 | F64: Program design | G64: 9 | H64: 18 | I64: =SUMIF($A$30:$A$33,A64,$D$30:$D$33) -> 13
A65: Student 2 | B65: 6175 | C65: 2013-04-03 | D65: 4 | E65: 0 | F65: Program design | G65: 9 | H65: 36 | I65: =SUMIF($A$30:$A$33,A65,$D$30:$D$33) -> 13
A66: Student 2 | B66: 6175 | C66: 2013-04-01 | D66: 4 | E66: 0 | F66: Program Design | G66: 9 | H66: 36 | I66: =SUMIF($A$30:$A$33,A66,$D$30:$D$33) -> 13
B67: 6175 Total | D67: =SUM(D63:D66) -> 13 | H67: =SUM(H63:H66) -> 117 | I67: =SUMPRODUCT(1/COUNTIF(I$30:I$33,I$30:I$33)) -> 1

Sheet Summary Info
A1: Showcode | B1: Show Name | C1: Newspaper | D1: Programs | E1: Posters | F1: Labor | G1: Total Cost | H1: X | I1: Student Employee1 | J1: Hours1 | K1: Student Employee2 | L1: Hours2 | M1: Student Employee3 | N1: Hours3 | O1: Student Employee4 | P1: Hours4 | Q1: Student Employee5 | R1: Hours5 | S1: Student Employee6 | T1: Hours6 | U1: Student Employee7 | V1: Hours7 | W1: Student Employee8 | X1: Hours8 | Y1: Student Employee9 | Z1: Hours9
A2: 6148 | B2: =VLOOKUP(A2,Showcodes!A:B,2) -> Henry V | C2: =SUMIF(PrintingData!$E:$E,'Summary Info'!A10,PrintingData!$H:$H) -> 100 | D2: =SUMIF(PrintingData!$N:$N,'Summary Info'!A10,PrintingData!$Q:$Q) -> 0 | E2: =SUMIF(PrintingData!$W:$W,'Summary Info'!A10,PrintingData!$Z:$Z) -> 0 | F2: 117 | G2: =SUM(C2:F2) -> 217 | I2: Student 2 | J2: 13
A3: 6162 | B3: =VLOOKUP(A3,Showcodes!A:B,2) -> Light in the Piazza | C3: =SUMIF(PrintingData!$E:$E,'Summary Info'!A2,PrintingData!$H:$H) -> 225 | D3: =SUMIF(PrintingData!$N:$N,'Summary Info'!A2,PrintingData!$Q:$Q) -> 0 | E3: =SUMIF(PrintingData!$W:$W,'Summary Info'!A2,PrintingData!$Z:$Z) -> 0 | F3: 100 | G3: =SUM(C3:F3) -> 325 | I3: Student 1 | J3: 10
A4: 6175 | B4: =VLOOKUP(A4,Showcodes!A:B,2) -> Servant of Two Masters | C4: =SUMIF(PrintingData!$E:$E,'Summary Info'!A19,PrintingData!$H:$H) -> 10 | D4: =SUMIF(PrintingData!$N:$N,'Summary Info'!A19,PrintingData!$Q:$Q) -> 1000 | E4: =SUMIF(PrintingData!$W:$W,'Summary Info'!A19,PrintingData!$Z:$Z) -> 100 | F4: 117 | G4: =SUM(C4:F4) -> 1227 | I4: Student 2 | J4: 13
A5: 6190 | B5: =VLOOKUP(A5,Showcodes!A:B,2) -> Wrinkle in Time, A | C5: =SUMIF(PrintingData!$E:$E,'Summary Info'!A3,PrintingData!$H:$H) -> 0 | D5: =SUMIF(PrintingData!$N:$N,'Summary Info'!A3,PrintingData!$Q:$Q) -> 0 | E5: =SUMIF(PrintingData!$W:$W,'Summary Info'!A3,PrintingData!$Z:$Z) -> 0 | F5: 80 | G5: =SUM(C5:F5) -> 80 | I5: Student 2 | J5: 5 | K5: Student 1 | L5: 3.5
A6: 6202 | B6: =VLOOKUP(A6,Showcodes!A:B,2) -> Group for New Music | C6: =SUMIF(PrintingData!$E:$E,'Summary Info'!A4,PrintingData!$H:$H) -> 0 | D6: =SUMIF(PrintingData!$N:$N,'Summary Info'!A4,PrintingData!$Q:$Q) -> 2000 | E6: =SUMIF(PrintingData!$W:$W,'Summary Info'!A4,PrintingData!$Z:$Z) -> 0 | F6: 42 | G6: =SUM(C6:F6) -> 2042 | I6: Student 3 | J6: 3.8
A7: 6204 | B7: =VLOOKUP(A7,Showcodes!A:B,2) -> Non-Ticketed Ensembles | C7: =SUMIF(PrintingData!$E:$E,'Summary Info'!A5,PrintingData!$H:$H) -> 0 | D7: =SUMIF(PrintingData!$N:$N,'Summary Info'!A5,PrintingData!$Q:$Q) -> 0 | E7: =SUMIF(PrintingData!$W:$W,'Summary Info'!A5,PrintingData!$Z:$Z) -> 0 | F7: 77 | G7: =SUM(C7:F7) -> 77 | I7: Student 3 | J7: 7
A8: 6206 | B8: =VLOOKUP(A8,Showcodes!A:B,2) -> University Chorale | C8: =SUMIF(PrintingData!$E:$E,'Summary Info'!A6,PrintingData!$H:$H) -> 0 | D8: =SUMIF(PrintingData!$N:$N,'Summary Info'!A6,PrintingData!$Q:$Q) -> 0 | E8: =SUMIF(PrintingData!$W:$W,'Summary Info'!A6,PrintingData!$Z:$Z) -> 0 | F8: 45 | G8: =SUM(C8:F8) -> 45 | I8: Student 1 | J8: 4.5
A9: 6206 | B9: =VLOOKUP(A9,Showcodes!A:B,2) -> University Chorale | C9: =SUMIF(PrintingData!$E:$E,'Summary Info'!A15,PrintingData!$H:$H) -> 0 | D9: =SUMIF(PrintingData!$N:$N,'Summary Info'!A15,PrintingData!$Q:$Q) -> 0 | E9: =SUMIF(PrintingData!$W:$W,'Summary Info'!A15,PrintingData!$Z:$Z) -> 0 | F9: 45 | G9: =SUM(C9:F9) -> 45 | I9: Student 1 | J9: 4.5
A10: 6222 | B10: =VLOOKUP(A10,Showcodes!A:B,2) -> MDT Showcase-Broadway Revue | C10: =SUMIF(PrintingData!$E:$E,'Summary Info'!A11,PrintingData!$H:$H) -> 0 | D10: =SUMIF(PrintingData!$N:$N,'Summary Info'!A11,PrintingData!$Q:$Q) -> 0 | E10: =SUMIF(PrintingData!$W:$W,'Summary Info'!A11,PrintingData!$Z:$Z) -> 0 | F10: 100 | G10: =SUM(C10:F10) -> 100 | I10: Student 1 | J10: 10
A11: 6249 | B11: =VLOOKUP(A11,Showcodes!A:B,2) -> University Orchestra & Strings | C11: =SUMIF(PrintingData!$E:$E,'Summary Info'!A7,PrintingData!$H:$H) -> 0 | D11: =SUMIF(PrintingData!$N:$N,'Summary Info'!A7,PrintingData!$Q:$Q) -> 85 | E11: =SUMIF(PrintingData!$W:$W,'Summary Info'!A7,PrintingData!$Z:$Z) -> 30 | F11: 15 | G11: =SUM(C11:F11) -> 130 | I11: Student 1 | J11: 1.5
A12: 6255 | B12: =VLOOKUP(A12,Showcodes!A:B,2) -> Jazz Ensemble | C12: =SUMIF(PrintingData!$E:$E,'Summary Info'!A17,PrintingData!$H:$H) -> 0 | D12: =SUMIF(PrintingData!$N:$N,'Summary Info'!A17,PrintingData!$Q:$Q) -> 500 | E12: =SUMIF(PrintingData!$W:$W,'Summary Info'!A17,PrintingData!$Z:$Z) -> 51 | F12: 15 | G12: =SUM(C12:F12) -> 566 | I12: Student 1 | J12: 1.5
A13: 6256 | B13: =VLOOKUP(A13,Showcodes!A:B,2) -> Madsen Music Evening Events | C13: =SUMIF(PrintingData!$E:$E,'Summary Info'!A12,PrintingData!$H:$H) -> 0 | D13: =SUMIF(PrintingData!$N:$N,'Summary Info'!A12,PrintingData!$Q:$Q) -> 100 | E13: =SUMIF(PrintingData!$W:$W,'Summary Info'!A12,PrintingData!$Z:$Z) -> 100 | F13: 80 | G13: =SUM(C13:F13) -> 280 | I13: Student 2 | J13: 5 | K13: Student 1 | L13: 3.5
A14: 6285 | B14: =VLOOKUP(A14,Showcodes!A:B,2) -> University Bands | C14: =SUMIF(PrintingData!$E:$E,'Summary Info'!A8,PrintingData!$H:$H) -> 0 | D14: =SUMIF(PrintingData!$N:$N,'Summary Info'!A8,PrintingData!$Q:$Q) -> 0 | E14: =SUMIF(PrintingData!$W:$W,'Summary Info'!A8,PrintingData!$Z:$Z) -> 0 | F14: 15 | G14: =SUM(C14:F14) -> 15 | I14: Student 1 | J14: 1.5
A15: 6287 | B15: =VLOOKUP(A15,Showcodes!A:B,2) -> Jazz Voices | C15: =SUMIF(PrintingData!$E:$E,'Summary Info'!A9,PrintingData!$H:$H) -> 0 | D15: =SUMIF(PrintingData!$N:$N,'Summary Info'!A9,PrintingData!$Q:$Q) -> 0 | E15: =SUMIF(PrintingData!$W:$W,'Summary Info'!A9,PrintingData!$Z:$Z) -> 0 | F15: 10 | G15: =SUM(C15:F15) -> 10 | I15: Student 1 | J15: 1
A16: 6304 | B16: =VLOOKUP(A16,Showcodes!A:B,2) -> Ballet in Concert-Sleeping Beauty | C16: =SUMIF(PrintingData!$E:$E,'Summary Info'!A14,PrintingData!$H:$H) -> 0 | D16: =SUMIF(PrintingData!$N:$N,'Summary Info'!A14,PrintingData!$Q:$Q) -> 0 | E16: =SUMIF(PrintingData!$W:$W,'Summary Info'!A14,PrintingData!$Z:$Z) -> 0 | F16: 77 | G16: =SUM(C16:F16) -> 77 | I16: Student 3 | J16: 7
A17: 6308 | B17: =VLOOKUP(A17,Showcodes!A:B,2) -> DancEnsemble | C17: =SUMIF(PrintingData!$E:$E,'Summary Info'!A13,PrintingData!$H:$H) -> 0 | D17: =SUMIF(PrintingData!$N:$N,'Summary Info'!A13,PrintingData!$Q:$Q) -> 80 | E17: =SUMIF(PrintingData!$W:$W,'Summary Info'!A13,PrintingData!$Z:$Z) -> 10 | F17: 42 | G17: =SUM(C17:F17) -> 132 | I17: Student 3 | J17: 3.8
A18: 7011 | B18: =VLOOKUP(A18,Showcodes!A:B,2) -> Aulos Ensemble | C18: =SUMIF(PrintingData!$E:$E,'Summary Info'!A16,PrintingData!$H:$H) -> 150 | D18: =SUMIF(PrintingData!$N:$N,'Summary Info'!A16,PrintingData!$Q:$Q) -> 2000 | E18: =SUMIF(PrintingData!$W:$W,'Summary Info'!A16,PrintingData!$Z:$Z) -> 0 | F18: 15 | G18: =SUM(C18:F18) -> 2165 | I18: Student 1 | J18: 1.5
A19: 7015 | B19: =VLOOKUP(A19,Showcodes!A:B,2) -> Aquila Theatre Co-Cyrano De Bergerac | C19: =SUMIF(PrintingData!$E:$E,'Summary Info'!A18,PrintingData!$H:$H) -> 75 | D19: =SUMIF(PrintingData!$N:$N,'Summary Info'!A18,PrintingData!$Q:$Q) -> 0 | E19: =SUMIF(PrintingData!$W:$W,'Summary Info'!A18,PrintingData!$Z:$Z) -> 50 | F19: 10 | G19: =SUM(C19:F19) -> 135 | I19: Student 1 | J19: 1
